bitfinex/quotes_ETHUSD_20220731
["timestamp","ask_amount","ask_price","bid_price","bid_amount"]
[1659251460508,1.0,1701.6,1701.1,0.34471435]
[1659251461945,1.6,1701.6,1701.1,0.34471435]
[1659251463428,4.49804672,1701.6,1701.1,0.34471435]
[1659251463587,5.96753672,1701.6,1701.1,0.34471435]
[1659251464121,2.89804672,1701.5,1700.9,0.05]
[1659251464426,2.89804672,1701.5,1700.7,6.0498]
[1659251464582,2.94804672,1701.5,1700.7,5.9998]
[1659251464784,2.89804672,1701.4,1700.7,5.9998]
[1659251464983,2.89804672,1701.4,1700.7,6.40092132]
[1659251465214,1.25311841,1701.4,1700.7,6.40092132]
[1659251466677,1.85311841,1701.4,1700.7,6.40092132]
[1659251466829,2.89804672,1701.3,1700.7,6.40092132]
[1659251467038,2.89804672,1701.3,1700.7,3.23832132]
[1659251468790,2.89804672,1701.3,1700.7,3.67972132]
[1659251468990,5.87846279,1701.3,1700.7,3.23832132]
[1659251469223,2.89804672,1701.3,1700.7,3.23832132]
[1659251471155,2.113578,1701.4,1700.9,0.2]
[1659251471156,0.35,1701.4,1700.9,0.2]
[1659251471359,0.3,1701.4,1701.0,0.34471435]
[1659251474698,0.3,1701.4,1700.9,0.05372131]
[1659251475648,3.19804672,1701.4,1700.9,0.05372131]
[1659251476290,2.89804672,1701.3,1700.9,0.05372131]
[1659251476454,2.89804672,1701.3,1700.6,0.05]
[1659251476455,3.19804672,1701.3,1700.6,0.05]
[1659251476685,6.49804672,1701.2,1700.5,8.1031]
[1659251476897,4.36794672,1701.1,1700.5,8.0531]
[1659251477075,2.89804672,1701.0,1700.5,8.0531]
[1659251477253,3.19804672,1701.0,1700.3,0.4915]
[1659251477583,3.19804672,1701.0,1700.2,8.6007]
[1659251477584,2.89804672,1700.9,1700.2,8.6007]
[1659251477886,2.89804672,1700.9,1700.2,8.45381435]
[1659251478101,4.66813672,1700.9,1700.2,8.45381435]
[1659251478280,4.66813672,1700.9,1700.1,0.05]
[1659251478281,6.89804672,1700.8,1700.1,0.05]
[1659251478480,2.89804672,1700.7,1700.0,0.05]
[1659251478804,3.5940714,1700.6,1699.9,17.7625]
[1659251479092,6.49211812,1700.6,1699.9,14.2125]
[1659251479389,4.66258482,1700.5,1699.9,8.1091]
[1659251479564,2.89804672,1700.4,1699.9,8.1091]
[1659251479890,3.19804672,1700.4,1699.9,8.1091]
[1659251480092,3.19804672,1700.4,1699.9,11.6091]
[1659251480093,0.3,1700.4,1699.9,11.6091]
[1659251480455,0.35,1700.6,1699.9,11.6091]
[1659251480647,3.49804672,1700.6,1700.0,0.34471435]
[1659251482048,4.96833672,1700.6,1700.0,0.34471435]
[1659251484674,2.89804672,1700.5,1700.0,0.34471435]
[1659251485025,1.77047,1700.4,1700.0,0.34471435]
[1659251485309,7.96851672,1700.4,1700.0,0.34247291]
[1659251488362,7.96553272,1700.4,1700.0,0.34247291]
[1659251491994,0.59043614,1700.5,1700.0,0.34247291]
[1659251491995,0.00224144,1700.5,1700.0,0.34247291]
[1659251492181,3.6,1700.6,1700.0,0.34247291]
[1659251492480,0.05,1700.7,1700.3,0.2]
[1659251492679,6.02551,1701.1,1700.3,0.2]
[1659251492680,0.05,1700.9,1700.5,0.2]
[1659251492922,4.36806672,1701.0,1700.5,0.2]
[1659251493062,11.3687,1701.1,1700.5,0.2]
[1659251493263,11.3687,1701.1,1700.6,0.4415]
[1659251493264,14.26674672,1701.1,1700.6,0.4415]
[1659251493463,14.26674672,1701.1,1700.5,0.54247291]
[1659251493881,3.3,1701.0,1700.5,0.54247291]
[1659251494062,3.6,1701.0,1700.5,0.54247291]
[1659251494682,6.49804672,1701.0,1700.3,0.05]
[1659251494881,6.49804672,1701.0,1700.2,6.2104]
[1659251495065,2.89804672,1700.9,1700.2,6.1604]
[1659251495292,0.00224144,1700.8,1700.2,5.7188]
[1659251495509,3.20028816,1700.8,1700.2,6.06127291]
[1659251495684,0.05,1700.9,1700.5,0.2]
[1659251495868,0.05,1700.9,1700.4,0.2]
[1659251495869,11.6687,1701.1,1700.8,0.2]
[1659251496101,14.26674672,1701.1,1700.8,0.2]
[1659251497208,14.56674672,1701.1,1700.8,0.2]
[1659251498724,14.56674672,1701.1,1700.5,0.25]
[1659251498905,14.56674672,1701.1,1700.4,8.5872]
[1659251498906,16.33069942,1701.1,1700.4,8.5872]
[1659251499129,6.17951501,1701.0,1700.4,8.5872]
[1659251499331,2.89804672,1700.9,1700.4,8.1457]
[1659251499550,2.90028816,1700.9,1700.4,8.1457]
[1659251500340,3.19431866,1700.9,1700.4,8.1457]
[1659251500587,5.87933959,1700.8,1700.2,6.2104]
[1659251500736,2.89804672,1700.7,1700.2,5.7188]
[1659251500933,2.89804672,1700.7,1700.2,2.7457]
[1659251501557,0.00224144,1700.6,1700.2,2.7457]
[1659251502266,2.90028816,1700.6,1700.1,3.45407291]
[1659251502569,2.90028816,1700.6,1700.1,0.34247291]
[1659251502740,3.20028816,1700.6,1700.1,0.34247291]
[1659251502933,4.96467526,1700.6,1700.1,0.34247291]
[1659251504234,4.36850672,1700.5,1699.9,0.05]
[1659251504434,4.36850672,1700.5,1699.7,7.8298]
[1659251504435,2.90028816,1700.4,1699.7,7.8298]
[1659251504632,2.89804672,1700.3,1699.7,7.7798]
[1659251504857,2.89804672,1700.3,1699.5,0.4917]
[1659251505060,4.66280442,1700.3,1699.4,2.9079]
[1659251505270,2.90028816,1700.2,1699.5,0.4417]
[1659251505434,2.89804672,1700.1,1699.5,0.4417]
[1659251505635,2.89804672,1700.1,1699.5,3.78417291]
[1659251508093,0.05224144,1700.2,1699.5,6.68221963]
[1659251508421,0.00224144,1700.2,1699.5,6.68221963]
[1659251508600,0.05,1700.3,1699.7,0.4]
[1659251508802,8.3356,1700.4,1700.1,0.2]
[1659251508803,8.3856,1700.4,1700.1,0.2]
[1659251508998,1.77046,1700.5,1700.1,0.2]
[1659251509206,3.6,1700.5,1700.1,0.2]
[1659251509590,6.49804672,1700.5,1700.1,0.2]
[1659251509903,2.90028816,1700.4,1699.8,2.9975]
[1659251510105,2.89804672,1700.3,1699.8,2.9475]
[1659251510830,2.89804672,1700.3,1699.8,2.94537948]
[1659251513189,2.89804672,1700.2,1699.7,0.34247291]
[1659251514794,2.89804672,1700.3,1699.7,0.34247291]
[1659251516568,2.90028816,1700.3,1699.7,0.34247291]
[1659251516769,2.89804672,1700.2,1699.7,0.34247291]
[1659251518872,0.00224144,1700.3,1699.7,0.34247291]
[1659251520582,2.90028816,1700.3,1699.7,0.34247291]
[1659251521993,0.05,1700.4,1700.0,0.2]
[1659251522198,0.05,1700.4,1699.8,3.09804672]
[1659251522199,5.959,1700.6,1700.1,3.65017126]
[1659251522397,2.89804672,1700.6,1700.1,0.34247291]
[1659251523394,2.89804672,1700.6,1700.2,0.2]
[1659251523997,8.0529,1700.7,1700.3,0.34247291]
[1659251524236,1.0,1700.8,1700.3,0.34247291]
[1659251524419,0.05,1701.0,1700.3,0.34247291]
[1659251524606,2.89804672,1700.9,1700.3,3.31137291]
[1659251525693,2.90028816,1700.9,1700.3,3.31137291]
[1659251526515,2.90028816,1700.9,1700.4,0.2]
[1659251526710,2.90028816,1700.9,1700.3,3.31137291]
[1659251529505,0.00224144,1700.9,1700.3,6.20941963]
[1659251529756,0.00224144,1700.9,1700.3,6.40941963]
[1659251531240,0.00224144,1700.9,1700.3,6.20941963]
[1659251531441,0.00224144,1700.9,1700.3,3.31137291]
[1659251532235,0.00224144,1700.9,1700.3,3.51137291]
[1659251532637,0.00224144,1700.9,1700.3,7.00884158]
[1659251533867,0.00224144,1700.9,1700.6,0.2]
[1659251538514,3.0852,1701.1,1700.8,0.2]
[1659251539162,1.0,1701.2,1700.8,0.2]
[1659251540396,1.0,1701.2,1701.1,0.2]
[1659251542206,1.0,1701.2,1700.8,0.2]
[1659251542527,1.0,1701.2,1700.7,0.33994158]
[1659251543203,0.00224144,1701.1,1700.7,0.33994158]
[1659251543574,1.0,1701.2,1700.7,0.33994158]
[1659251543761,1.00224144,1701.2,1700.7,0.33994158]
[1659251551513,1.00224144,1701.2,1700.5,2.9642]
[1659251551514,2.89804672,1701.1,1700.5,2.9642]
[1659251551821,0.00253133,1701.0,1700.5,2.7142]
[1659251552024,2.90057805,1701.0,1700.5,2.7142]
[1659251554247,2.90057805,1701.0,1700.5,2.71151024]
[1659251555611,2.90057805,1701.0,1700.4,14.78047608]
[1659251555612,2.90057805,1701.0,1700.4,11.3875]
[1659251555807,2.90057805,1701.0,1700.2,0.05]
[1659251555808,2.89804672,1700.9,1700.2,0.05]
[1659251556007,0.00224144,1700.8,1700.1,11.1651]
[1659251556225,2.90028816,1700.8,1700.1,11.1151]
[1659251557042,2.90028816,1700.8,1700.1,11.4151]
[1659251557751,2.90028816,1700.8,1700.2,0.33994158]
[1659251557954,2.90028816,1700.8,1700.2,0.34435175]
[1659251558641,2.90028816,1700.8,1700.2,3.84435175]
[1659251558814,0.00224144,1700.8,1700.2,3.84435175]
[1659251559210,0.00224144,1700.8,1700.3,3.33914672]
[1659251559422,0.00224144,1700.8,1700.4,0.39054485]
[1659251560463,0.00224144,1700.8,1700.4,3.89054485]
[1659251560755,0.05,1701.0,1700.5,7.33904672]
[1659251560972,2.23244103,1701.5,1700.7,0.2]
[1659251560973,0.05,1701.2,1700.7,0.2]
[1659251561123,0.05,1701.4,1701.0,0.2]
[1659251561460,3.89804672,1701.6,1701.2,0.2]
[1659251561811,3.89804672,1701.6,1701.1,0.39052403]
[1659251562013,1.0,1701.6,1701.2,3.7]
[1659251562214,1.93815823,1701.9,1701.5,0.2]
[1659251562215,0.05,1701.9,1701.5,0.2]
[1659251562436,0.00336758,1702.1,1701.8,0.2]
[1659251562963,11.5,1702.2,1701.8,0.2]
[1659251564249,0.00224144,1702.1,1701.5,8.2571]
[1659251564421,0.00224144,1702.1,1701.5,7.7663]
[1659251564635,0.1782258,1702.1,1701.5,7.7663]
[1659251564833,0.1782258,1702.1,1701.4,2.9577]
[1659251564834,1.6473658,1702.1,1701.4,2.9577]
[1659251565078,1.6473658,1702.1,1701.3,0.05]
[1659251565079,1.9473658,1702.1,1701.3,0.05]
[1659251565260,9.18600493,1702.1,1701.2,0.05]
[1659251565465,2.06928,1701.9,1701.2,0.05]
[1659251565668,2.06928,1701.9,1701.1,16.9483]
[1659251565669,2.90028816,1701.8,1701.1,16.9483]
[1659251565835,2.90028816,1701.8,1701.1,16.8983]
[1659251565836,4.36747672,1701.7,1701.1,16.8983]
[1659251566036,4.36747672,1701.7,1701.1,14.1661]
[1659251566239,4.36747672,1701.7,1701.1,13.7252]
[1659251566477,0.00224144,1701.6,1701.1,13.7252]
[1659251567238,2.89804672,1701.5,1701.1,8.0195]
[1659251567480,2.90028816,1701.5,1701.1,8.0195]
[1659251567696,3.07627252,1701.5,1701.1,8.0195]
[1659251568037,3.07627252,1701.5,1700.8,0.491]
[1659251568038,3.37627252,1701.5,1700.8,0.491]
[1659251568264,5.14591252,1701.5,1700.7,11.7666]
[1659251568464,5.19591252,1701.5,1700.8,0.33994158]
[1659251568718,4.96992816,1701.5,1700.8,0.33994158]
[1659251569217,4.96992816,1701.5,1700.8,0.383715]
[1659251569504,2.89804672,1701.4,1700.8,0.383715]
[1659251571284,2.89804672,1701.4,1700.8,0.33994158]
[1659251571285,0.00253133,1701.3,1700.8,0.33994158]
[1659251571484,0.00253133,1701.3,1700.6,2.9182]
[1659251571485,3.19804672,1701.2,1700.6,2.9182]
[1659251571800,3.19804672,1701.2,1700.6,2.8682]
[1659251571801,3.49804672,1701.2,1700.6,2.8682]
[1659251572216,0.00253133,1701.1,1700.6,2.8682]
[1659251574625,2.90057805,1701.1,1700.6,2.8682]
[1659251577893,2.90057805,1701.1,1700.5,0.00857201]
[1659251577894,3.19804672,1701.0,1700.5,0.00857201]
[1659251578121,2.90028816,1700.9,1700.4,7.5164]
[1659251578405,2.89804672,1700.8,1700.2,0.05]
[1659251578601,2.89804672,1700.8,1700.1,7.9814]
[1659251578602,0.00258901,1700.2,1700.1,7.9814]
[1659251579624,0.00258901,1700.2,1699.9,0.38197748]
[1659251579822,0.00258901,1700.2,1699.9,3.37247748]
[1659251580348,0.00258901,1700.2,1700.0,3.33924672]
[1659251580498,0.00258901,1700.2,1700.1,6.40574507]
[1659251580696,0.00258901,1700.2,1700.1,0.54204313]
[1659251580937,0.00258901,1700.2,1700.1,15.92122212]
[1659251581312,0.05,1700.6,1700.2,0.00049408]
[1659251581507,1.65,1700.9,1700.3,0.34204288]
[1659251581698,4.49804672,1700.9,1700.3,0.34204288]
[1659251581917,3.0,1700.8,1700.3,0.34204288]
[1659251582420,0.05,1701.0,1700.6,0.2]
[1659251582625,0.05,1701.2,1700.7,0.37996193]
[1659251582805,2.7306,1701.4,1700.7,0.37996193]
[1659251582806,2.7806,1701.4,1700.9,0.2]
[1659251583007,5.62864672,1701.4,1700.9,0.2]
[1659251583201,5.62864672,1701.4,1700.9,0.57995724]
[1659251583454,2.89804672,1701.4,1700.9,0.57995724]
[1659251584695,10.41174672,1701.5,1700.9,0.57995724]
[1659251585175,1.0,1701.6,1700.9,3.47800396]
[1659251585381,1.0,1701.6,1701.0,0.4409]
[1659251586097,1.0,1701.6,1701.1,0.2]
[1659251586306,1.0,1701.6,1701.1,0.54393741]
[1659251586508,18.30374,1701.8,1701.1,0.54393741]
[1659251586691,2.89804672,1701.7,1701.1,0.54393741]
[1659251587535,2.90281949,1701.7,1701.1,0.54393741]
[1659251588050,2.90281949,1701.7,1701.3,0.2]
[1659251588622,0.00477277,1701.7,1701.4,0.2]
[1659251591877,0.00477277,1701.7,1701.3,0.37435189]
[1659251592065,0.00477277,1701.7,1701.1,0.6409]
[1659251592391,0.00477277,1701.7,1701.1,1.01525593]
[1659251592547,0.00477277,1701.7,1701.3,0.2]
[1659251593189,2.1131849,1701.9,1701.6,0.2]
[1659251593190,0.05,1701.9,1701.6,0.2]
[1659251593345,1.0,1702.0,1701.8,0.2]
[1659251593544,7.70773451,1702.1,1701.5,0.4]
[1659251593745,7.7043,1702.1,1701.5,3.29804672]
[1659251593971,7.7043,1702.1,1701.5,3.6379883]
[1659251594185,7.70773508,1702.1,1701.5,3.6379883]
[1659251594351,0.00343508,1702.1,1701.6,2.89804672]
[1659251594545,0.00343508,1702.1,1701.9,0.2]
[1659251595191,3.3,1702.2,1701.9,0.2]
[1659251595987,3.0,1702.2,1701.9,0.2]
[1659251596151,17.651935,1702.3,1701.9,0.2]
[1659251596589,14.8673,1702.3,1701.9,0.2]
[1659251596789,11.8,1702.3,1701.9,0.53994158]
[1659251597106,0.18365354,1702.4,1702.2,0.2]
[1659251597284,0.00333744,1702.4,1702.2,0.2]
[1659251597484,0.00333744,1702.4,1702.3,5.93104066]
[1659251597869,0.05,1702.8,1702.3,0.93104066]
[1659251598057,0.00477277,1702.8,1702.1,3.2826]
[1659251598252,0.2506,1702.7,1702.1,2.792]
[1659251598683,3.18075713,1702.7,1702.1,2.792]
[1659251599629,0.2937412,1702.6,1701.9,0.05]
[1659251599859,0.2937412,1702.6,1701.8,2.842]
[1659251599983,0.2937412,1702.6,1701.8,2.792]
[1659251599984,0.17598436,1702.5,1701.8,2.792]
[1659251600784,3.47598436,1702.5,1701.8,2.792]
[1659251601198,0.17598436,1702.4,1701.8,2.792]
[1659251601384,0.17598436,1702.4,1701.7,11.028]
[1659251601617,0.47598436,1702.4,1701.7,11.028]
[1659251601800,1.47598436,1702.4,1701.7,3.0472]
[1659251602019,0.17598436,1702.3,1701.7,3.0472]
[1659251602222,0.47598436,1702.3,1701.7,3.0472]
[1659251602632,0.47598436,1702.3,1701.7,3.3892414]
[1659251602797,1.94496436,1702.3,1701.7,3.3892414]
[1659251603153,3.00371859,1702.3,1701.7,3.3892414]
[1659251603450,0.00371859,1702.3,1701.7,0.7827414]
[1659251603921,1.35,1702.4,1701.7,0.7827414]
[1659251604128,4.49804672,1702.4,1701.7,0.7827414]
[1659251604332,4.50131393,1702.4,1701.7,0.7827414]
[1659251604631,2.90281949,1702.3,1701.7,0.7827414]
[1659251604838,2.90281949,1702.3,1701.7,0.3420414]
[1659251605010,3.07880385,1702.3,1701.7,0.3420414]
[1659251607749,3.0,1702.2,1701.7,0.3420414]
[1659251608939,3.0,1702.2,1701.7,3.24008812]
[1659251609142,4.48408599,1702.4,1701.7,3.24008812]
[1659251609143,4.4807,1702.4,1701.7,3.24008812]
[1659251609348,4.4307,1702.4,1701.7,3.68078812]
[1659251609574,4.43408585,1702.4,1701.7,3.68078812]
[1659251610128,4.43408585,1702.4,1701.7,3.24008812]
[1659251610549,4.4307,1702.4,1701.7,3.24008812]
[1659251610932,4.43408589,1702.4,1701.7,3.24008812]
[1659251611779,4.4307,1702.4,1701.7,3.24008812]
[1659251612474,4.4307,1702.4,1701.7,3.44008812]
[1659251612868,4.4307,1702.4,1702.0,0.2]
[1659251613042,1.6,1702.4,1702.0,0.2]
[1659251613374,4.6,1702.4,1702.0,0.2]
[1659251615142,4.6,1702.4,1701.9,0.38232234]
[1659251616738,7.82514941,1702.5,1702.0,0.2]
[1659251616964,7.82514941,1702.5,1702.1,0.38231736]
[1659251617252,7.82514941,1702.5,1702.4,0.2]
[1659251617253,0.00337664,1702.5,1702.4,0.2]
[1659251617406,17.8855,1702.8,1702.4,0.2]
[1659251617884,17.88887642,1702.8,1702.4,0.2]
[1659251618058,14.98447642,1702.8,1702.4,0.2]
[1659251618807,14.9811,1702.8,1702.4,0.2]
[1659251620193,14.9811,1702.8,1702.4,0.19601183]
[1659251622840,11.7506,1702.8,1702.4,0.19601183]
[1659251623039,11.7506,1702.8,1702.3,4.4406]
[1659251623206,11.7506,1702.8,1702.4,0.33994158]
[1659251625483,11.7506,1702.8,1702.5,0.19601183]
[1659251625682,11.7506,1702.8,1702.7,2.69601183]
[1659251626382,11.7506,1702.8,1702.6,0.33994158]
[1659251626591,11.7506,1702.8,1702.4,2.89804672]
[1659251626592,11.7506,1702.8,1702.4,0.4406]
[1659251626746,11.92658436,1702.8,1702.4,0.4406]
[1659251626945,14.82463108,1702.8,1702.3,2.9066]
[1659251627183,11.92658436,1702.8,1702.3,2.9066]
[1659251627387,11.92658436,1702.8,1702.3,6.65953143]
[1659251627555,11.7506,1702.8,1702.3,6.65953143]
[1659251628155,11.7506,1702.8,1702.3,7.25953143]
[1659251630163,11.7506,1702.8,1702.3,7.45554326]
[1659251630500,11.7506,1702.8,1702.3,3.76148471]
[1659251630799,11.92658436,1702.8,1702.3,3.32088471]
[1659251631974,2.90281949,1702.7,1702.1,0.05]
[1659251632173,2.90281949,1702.7,1702.1,2.89804672]
[1659251632174,0.00477277,1702.7,1702.1,2.89804672]
[1659251632430,0.00477277,1702.7,1702.0,3.1648]
[1659251632431,0.17598436,1702.6,1702.0,3.1648]
[1659251632717,0.17598436,1702.6,1702.0,2.7241]
[1659251633147,0.18075713,1702.6,1702.0,2.7241]
[1659251635535,0.00477277,1702.6,1702.0,3.13841614]
[1659251636239,2.85281949,1702.7,1702.0,3.13841614]
[1659251636565,2.80281949,1702.7,1702.0,3.13841614]
[1659251636974,12.4006,1702.8,1702.1,3.33864672]
[1659251637266,0.2506,1702.8,1702.4,0.19601183]
[1659251638026,0.2506,1702.8,1702.4,3.16841563]
[1659251638377,0.2506,1702.8,1702.7,0.39601183]
[1659251638525,0.2506,1702.8,1702.7,0.19601183]
[1659251638725,0.2506,1702.8,1702.7,3.09405855]
[1659251640445,0.2506,1702.8,1702.7,2.89804672]
[1659251640689,0.2506,1702.8,1702.5,0.4405]
[1659251640897,0.2506,1702.8,1702.5,2.89804672]
[1659251642095,0.2506,1702.8,1702.5,3.2464787]
[1659251642387,0.2506,1702.8,1702.6,2.89804672]
[1659251642588,0.2506,1702.8,1702.7,3.19601183]
[1659251642795,0.2506,1702.8,1702.7,6.09405855]
[1659251643616,0.14767671,1703.0,1702.8,5.0]
[1659251643815,0.1443744,1703.0,1702.9,3.29405855]
[1659251651424,0.1443744,1703.0,1702.9,2.89804672]
[1659251651635,0.1443744,1703.0,1702.9,3.29405855]
[1659251652771,0.1443744,1703.0,1702.9,2.89804672]
[1659251657277,0.1443744,1703.0,1702.9,3.09405855]
[1659251659451,0.00343791,1703.3,1703.2,0.39601183]
[1659251659648,0.00343791,1703.3,1703.2,11.54852833]
[1659251659849,0.2887488,1703.4,1703.3,0.39601183]
[1659251660070,0.2887488,1703.4,1703.3,3.29405855]
[1659251661936,0.2887488,1703.4,1703.3,3.09405855]
[1659251662539,0.2887488,1703.4,1703.0,12.79227]
[1659251662767,0.2887488,1703.4,1703.0,14.08934672]
[1659251666483,0.2887488,1703.4,1703.0,13.78934672]
[1659251666699,0.2887488,1703.4,1703.0,10.78934672]
[1659251667068,0.2887488,1703.4,1703.0,14.28934672]
[1659251667266,0.2887488,1703.4,1703.0,10.78934672]
[1659251669999,0.2887488,1703.4,1703.0,10.83934672]
[1659251672772,0.2887488,1703.4,1703.0,10.53934672]
[1659251673175,0.2887488,1703.4,1703.1,0.34471435]
[1659251678509,0.2887488,1703.4,1703.0,3.019616]
[1659251679208,0.2887488,1703.4,1703.0,0.05]
[1659251679432,0.46473316,1703.4,1703.0,0.05]
[1659251680002,0.2887488,1703.4,1703.0,0.05]
[1659251681002,0.2887488,1703.4,1703.0,0.04664699]
[1659251688773,0.2887488,1703.4,1703.1,3.24833051]
[1659251688977,0.2887488,1703.4,1703.2,19.37614792]
[1659251689179,11.5,1703.6,1703.3,6.83834672]
[1659251689383,0.6274976,1703.9,1703.7,0.39601183]
[1659251689568,0.5774976,1703.9,1703.8,10.33824672]
[1659251689767,0.3,1704.0,1703.8,10.13824672]
[1659251689981,0.3,1704.0,1703.9,2.89804672]
[1659251690396,0.3,1704.0,1703.9,6.7483279]
[1659251690697,0.3,1704.0,1703.9,20.12133973]
[1659251690987,0.05,1704.4,1704.0,1.7596]
[1659251691192,0.51891823,1704.7,1704.1,13.31514672]
[1659251691395,0.46891823,1704.8,1704.4,0.19601183]
[1659251691611,0.70337021,1705.0,1704.6,0.19601183]
[1659251691612,0.05,1705.0,1704.6,0.19601183]
[1659251691755,6.15817021,1705.3,1704.7,2.89804672]
[1659251691756,0.51891823,1705.2,1704.7,2.89804672]
[1659251691953,0.46891823,1705.2,1704.7,3.35766582]
[1659251692153,0.46891823,1705.2,1704.8,2.89804672]
[1659251692410,0.46891823,1705.2,1704.8,3.09405855]
[1659251692616,0.46891823,1705.3,1704.9,6.39804672]
[1659251692758,0.46891823,1705.3,1705.0,2.89804672]
[1659251693079,0.51891823,1705.6,1705.1,6.89405855]
[1659251693287,0.46891823,1705.7,1705.2,9.51484672]
[1659251693504,0.46891823,1705.7,1705.3,2.89804672]
[1659251693798,0.00389537,1705.6,1705.3,6.19605247]
[1659251693962,0.00389537,1705.6,1705.4,2.89804672]
[1659251694801,0.46891823,1705.8,1705.4,2.89804672]
[1659251695160,0.46891823,1705.8,1705.4,3.26175455]
[1659251695367,0.46891823,1705.8,1705.5,2.89804672]
[1659251695561,0.46891823,1705.8,1705.6,6.59405855]
[1659251695787,0.46891823,1706.0,1705.9,5.19601183]
[1659251695955,0.47082722,1706.3,1706.2,5.69601183]
[1659251696157,0.47082722,1706.4,1706.2,13.17504672]
[1659251696388,0.71037021,1706.5,1706.3,2.89804672]
[1659251696389,0.007,1706.5,1706.3,2.89804672]
[1659251697322,0.007,1706.5,1706.4,3.84471435]
[1659251697636,0.007,1706.5,1706.4,6.9387729]
[1659251699132,0.007,1706.5,1706.4,6.39804672]
[1659251699293,0.007,1706.5,1706.4,6.59405855]
[1659251699488,0.05,1706.9,1706.5,0.007]
[1659251699690,1.87406605,1707.8,1706.9,7.69601183]
[1659251699691,0.11653605,1707.8,1706.9,7.69601183]
[1659251699891,0.11653605,1707.8,1707.3,3.09405855]
[1659251700132,0.11653605,1707.8,1707.4,3.24276107]
[1659251700931,0.11653605,1707.8,1707.5,6.19142017]
[1659251701131,0.11653605,1707.8,1707.6,2.89804672]
[1659251701378,0.11653605,1707.8,1707.6,3.24276107]
[1659251701670,0.11653605,1707.8,1707.3,3.5]
[1659251701875,0.11653605,1707.8,1707.4,2.89804672]
[1659251702235,0.11653605,1707.8,1707.2,0.34471435]
[1659251702437,0.11653605,1707.8,1707.0,3.5]
[1659251702438,0.00398817,1707.2,1707.0,0.05]
[1659251702638,1.35,1707.5,1706.6,8.1677]
[1659251702877,0.00398817,1707.3,1706.6,8.1677]
[1659251703031,0.00398817,1707.3,1706.5,0.05]
[1659251703233,0.00398817,1707.3,1706.4,0.05]
[1659251703433,0.05,1707.3,1706.5,3.5]
[1659251703678,0.05,1707.4,1706.8,3.5]
[1659251703907,1.0,1707.5,1707.2,0.19601183]
[1659251703908,1.05,1707.5,1707.2,0.19601183]
[1659251704089,0.16653605,1707.8,1707.2,3.5]
[1659251704293,0.11653605,1707.8,1707.5,0.19601183]
[1659251704667,0.11653605,1707.8,1707.6,2.89804672]
[1659251704870,0.11653605,1707.8,1707.5,2.89804672]
[1659251705073,0.11653605,1707.8,1707.3,3.0]
[1659251705074,0.11653605,1707.8,1707.3,0.6485618]
[1659251705271,0.11653605,1707.8,1707.4,6.39804672]
[1659251705499,0.11653605,1707.8,1707.5,2.89804672]
[1659251706103,0.11653605,1707.8,1707.3,0.3485618]
[1659251706274,0.11653605,1707.8,1707.4,2.89804672]
[1659251706963,0.11653605,1707.8,1707.3,3.54660852]
[1659251707418,0.11653605,1707.8,1707.4,2.89804672]
[1659251708171,0.11653605,1707.8,1707.3,3.24660852]
[1659251708771,0.11653605,1707.8,1707.4,6.19103473]
[1659251708971,0.11653605,1707.8,1707.5,2.89804672]
[1659251709374,0.2206914,1707.6,1707.5,2.89804672]
[1659251709608,0.2206914,1707.6,1707.5,6.99804672]
[1659251709774,0.2206914,1707.6,1707.5,10.73062017]
[1659251709974,0.2206914,1707.6,1707.5,9.99142017]
[1659251710209,0.2206914,1707.6,1707.5,2.89804672]
[1659251711112,0.2206914,1707.6,1707.5,3.25245183]
[1659251711635,0.2206914,1707.6,1707.1,7.6722]
[1659251711838,0.2206914,1707.6,1707.2,2.89804672]
[1659251712197,0.2206914,1707.6,1707.2,6.39804672]
[1659251712398,0.2206914,1707.6,1707.3,2.89804672]
[1659251712921,0.2206914,1707.6,1707.2,3.25245353]
[1659251713095,0.2206914,1707.6,1707.2,6.75245353]
[1659251713525,0.2206914,1707.6,1707.2,3.25245353]
[1659251713711,0.2206914,1707.6,1707.4,3.5]
[1659251713917,0.2206914,1707.6,1707.5,7.18610007]
[1659251714121,0.2206914,1707.6,1707.5,6.74690007]
[1659251715117,0.11653605,1707.8,1707.6,10.58803664]
[1659251715320,0.05,1708.1,1707.8,8.0]
[1659251715521,0.05,1708.4,1707.9,2.89804672]
[1659251715720,0.057,1708.6,1708.0,6.39804672]
[1659251715923,0.057,1708.6,1708.1,2.89804672]
[1659251715924,0.01098817,1708.6,1708.1,2.89804672]
[1659251716738,0.01098817,1708.6,1708.2,2.89804672]
[1659251717440,0.007,1708.6,1708.2,2.89804672]
[1659251717614,0.007,1708.6,1708.1,0.39150225]
[1659251717819,0.007,1708.6,1707.9,0.05]
[1659251717820,0.00398817,1708.4,1707.9,0.05]
[1659251718031,0.00398817,1708.4,1707.7,13.7411]
[1659251718232,0.00398817,1708.4,1707.8,2.89804672]
[1659251718412,0.00398817,1708.4,1707.8,3.24276107]
[1659251718619,0.05,1708.5,1707.9,2.89804672]
[1659251718844,0.607,1708.6,1707.9,2.89804672]
[1659251719018,0.307,1708.6,1707.9,2.89804672]
[1659251719219,0.00384763,1708.4,1708.0,0.34471435]
[1659251720032,0.307,1708.6,1708.0,0.34471435]
[1659251720405,0.00398817,1708.4,1707.8,0.05]
[1659251720607,0.00398817,1708.4,1707.6,3.1016]
[1659251720608,0.00398817,1707.8,1707.6,0.05]
[1659251720810,0.00398817,1707.8,1707.3,3.1949]
[1659251721106,0.00398817,1707.8,1707.4,2.89804672]
[1659251721532,0.05,1708.0,1707.2,0.84077354]
[1659251721533,0.59,1707.5,1707.2,0.84077354]
[1659251721734,0.59,1707.5,1707.2,0.40147354]
[1659251721943,0.59,1707.5,1706.9,3.3278]
[1659251721944,0.89,1707.5,1706.9,3.3278]
[1659251722250,1.0,1707.7,1706.9,3.3278]
[1659251722251,0.05,1707.7,1707.2,3.5]
[1659251722408,0.05,1707.9,1707.2,3.5]
[1659251722614,4.0,1708.1,1707.4,3.5]
[1659251722615,0.05321617,1708.0,1707.4,3.5]
[1659251722952,0.00321617,1708.0,1707.6,3.5]
[1659251723302,1.0,1708.1,1707.6,3.5]
[1659251723303,1.0,1708.1,1707.7,2.89804672]